bitfinex-derivatives/quotes_ETHF0:USTF0_20220103
["timestamp","ask_amount","ask_price","bid_price","bid_amount"]
[1641209712765,3.5028,3832.7,3832.3,0.46123657]
[1641209713164,0.5028,3832.7,3832.3,0.46123657]
[1641209713363,1.5,3832.6,3831.9,1.09901137]
[1641209713565,1.5,3832.1,3831.7,1.47171517]
[1641209713765,1.5,3831.8,3831.4,1.47657611]
[1641209713968,0.6499,3831.8,3831.7,1.18126088]
[1641209714166,2.1499,3831.8,3831.4,1.47657611]
[1641209714365,1.5,3831.6,3830.9,2.21486416]
[1641209714665,1.5,3831.1,3830.9,2.21486416]
[1641209714864,1.5,3831.1,3830.6,2.89219547]
[1641209715265,1.5,3831.6,3830.6,2.89219547]
[1641209715667,1.5,3831.4,3830.6,2.89219547]
[1641209715866,1.5,3831.4,3830.3,2.00479]
[1641209715867,2.05516293,3831.7,3830.3,2.00479]
[1641209716065,2.00479,3831.2,3830.3,2.00479]
[1641209716266,1.5,3831.1,3830.3,2.00479]
[1641209716866,2.00479,3831.2,3830.3,2.00479]
[1641209718469,0.55516293,3831.1,3830.3,2.00479]
[1641209718672,24.25256238,3830.7,3830.3,2.00479]
[1641209718870,2.30771127,3830.6,3829.3,1.30485615]
[1641209719070,25.01166238,3830.7,3829.9,2.132947]
[1641209719271,25.01166238,3830.7,3829.9,2.00479]
[1641209720070,2.00479,3830.6,3829.9,2.00479]
[1641209722269,2.00479,3830.6,3829.9,2.132947]
[1641209722771,2.00479,3830.6,3829.9,2.00479]
[1641209722970,2.78795843,3830.6,3829.9,2.00479]
[1641209724475,2.00479,3830.6,3829.9,2.132947]
[1641209727473,2.00479,3830.6,3829.9,2.00479]
[1641209728077,2.00479,3830.6,3829.9,2.132947]
[1641209729379,2.00479,3830.6,3829.9,2.00479]
[1641209730681,2.00479,3830.6,3830.0,0.128157]
[1641209731081,2.00479,3830.6,3829.9,2.00479]
[1641209732686,2.00479,3830.6,3829.9,2.132947]
[1641209733385,2.00479,3830.6,3829.9,2.00479]
[1641209734986,2.00479,3830.6,3829.9,2.132947]
[1641209735386,2.00479,3830.6,3829.9,2.00479]
[1641209736887,2.00479,3830.6,3829.9,2.132947]
[1641209737488,2.00479,3830.6,3829.9,2.00479]
[1641209740191,0.78309097,3831.0,3830.5,1.5]
[1641209740391,2.00479,3831.2,3830.5,2.2746]
[1641209740590,2.00479,3831.2,3830.5,0.7746]
[1641209741891,2.00479,3831.2,3830.0,0.128157]
[1641209742091,2.00479,3831.2,3830.0,1.38484382]
[1641209742793,2.00479,3831.2,3830.1,1.5]
[1641209742992,2.00479,3831.2,3830.0,1.38484382]
[1641209743891,2.00479,3831.2,3830.3,1.5]
[1641209744094,2.00479,3831.2,3830.0,1.38484382]
[1641209744692,2.00479,3831.2,3830.3,1.5]
[1641209745293,2.00479,3831.2,3830.0,1.38484382]
[1641209745694,2.00479,3831.2,3830.3,1.5]
[1641209745893,2.00479,3831.2,3830.0,1.38484382]
[1641209749094,2.00479,3831.2,3830.1,1.5]
[1641209749997,2.00479,3831.2,3830.4,1.5]
[1641209750195,2.00479,3831.2,3830.6,1.5]
[1641209750600,2.00479,3831.2,3830.6,1.02895193]
[1641209750797,2.00479,3831.2,3830.6,2.52895193]
[1641209751297,2.00479,3831.2,3830.6,1.02895193]
[1641209757709,2.00479,3831.2,3830.6,2.52895193]
[1641209757909,2.00479,3831.2,3830.6,1.02895193]
[1641209760908,1.45333227,3831.0,3830.8,0.87692404]
[1641209761310,1.45333227,3831.0,3830.9,0.229991]
[1641209762208,1.45333227,3831.0,3830.8,0.87692404]
[1641209762608,0.5555148,3831.1,3830.8,0.87692404]
[1641209763311,1.46850927,3830.9,3830.7,1.21615087]
[1641209763511,1.46850927,3830.9,3830.8,0.229991]
[1641209763913,1.46850927,3830.9,3830.7,1.34430787]
[1641209764514,1.46850927,3830.9,3830.7,1.57429887]
[1641209764914,2.29951352,3831.1,3830.7,1.00508104]
[1641209765514,2.29951352,3831.1,3830.7,0.87692404]
[1641209765914,1.46852561,3830.8,3830.6,1.90587597]
[1641209766715,1.46852561,3830.8,3830.7,1.2172124]
[1641209767213,1.46852561,3830.8,3830.7,0.34028836]
[1641209767414,2.02404041,3830.9,3830.7,0.34028836]
[1641209768618,1.46852561,3830.9,3830.8,0.88869036]
[1641209769518,1.46852561,3830.9,3830.8,1.11868136]
[1641209770018,1.46852561,3830.9,3830.8,0.88869036]
[1641209770523,1.46852561,3830.9,3830.8,1.11868136]
[1641209771120,1.46852561,3830.9,3830.8,0.88869036]
[1641209771823,1.46852561,3830.9,3830.8,1.11868136]
[1641209772024,1.46852561,3830.9,3830.8,0.88869036]
[1641209772626,1.46852561,3830.9,3830.8,1.22897872]
[1641209772825,1.46852561,3830.9,3830.8,1.45896972]
[1641209773028,1.46852561,3830.9,3830.8,1.22897872]
[1641209773725,1.46852561,3830.9,3830.8,1.45896972]
[1641209774126,1.46852561,3830.9,3830.8,0.88869036]
[1641209774529,1.46852561,3830.9,3830.8,1.11868136]
[1641209775328,1.46852561,3830.9,3830.8,0.88869036]
[1641209775530,1.46852561,3830.9,3830.8,1.11868136]
[1641209776329,1.46852561,3830.9,3830.8,0.88869036]
[1641209776930,1.46852561,3830.9,3830.8,1.45896972]
[1641209777130,1.46852561,3830.9,3830.8,1.22897872]
[1641209777631,1.46852561,3830.9,3830.8,0.88869036]
[1641209778439,1.46852561,3830.9,3830.8,1.11868136]
[1641209779336,1.46852561,3830.9,3830.8,1.22897872]
[1641209780138,1.46852561,3830.9,3830.8,0.88869036]
[1641209780738,1.46852561,3830.9,3830.8,1.11868136]
[1641209780940,2.00479,3831.2,3830.7,0.71313034]
[1641209782341,1.47059823,3830.9,3830.8,1.23219893]
[1641209782943,0.55562477,3831.1,3830.8,0.88898916]
[1641209783143,0.55562477,3831.1,3830.7,0.71313034]
[1641209783144,2.32034264,3831.1,3830.7,1.6021195]
[1641209784044,1.4703828,3830.8,3830.7,1.6021195]
[1641209784343,1.4703828,3830.8,3830.7,1.8321105]
[1641209784544,1.4703828,3830.8,3830.7,1.6021195]
[1641209784743,1.4703828,3830.8,3830.7,1.94516086]
[1641209785545,1.4703828,3830.8,3830.7,1.23203052]
[1641209786146,1.76471787,3831.0,3830.5,0.88898916]
[1641209786547,1.76471787,3830.8,3830.5,0.88898916]
[1641209787949,1.47065902,3830.6,3830.5,0.88898916]
[1641209788550,1.47065902,3830.6,3830.5,1.11898016]
[1641209788750,1.47065902,3830.6,3830.5,0.88898916]
[1641209789958,1.47065902,3830.6,3830.5,1.11898016]
[1641209790156,1.47065902,3830.6,3830.5,0.88898916]
[1641209790754,1.47065902,3830.6,3830.5,1.11898016]
[1641209791857,1.47065902,3830.6,3830.5,0.88898916]
[1641209792058,2.32034264,3830.8,3830.5,1.23205919]
[1641209792958,2.02776487,3830.8,3830.7,0.88898916]
[1641209793761,2.02776487,3830.8,3830.4,1.18531889]
[1641209794059,2.02776487,3830.8,3830.7,0.34307003]
[1641209794259,2.02776487,3830.8,3830.7,0.57306103]
[1641209795063,2.02776487,3830.8,3830.7,1.23208665]
[1641209795263,2.02776487,3830.8,3830.7,1.46207765]
[1641209795564,2.02776487,3830.8,3830.7,1.23208665]
[1641209796163,2.02776487,3830.8,3830.7,0.88901662]
[1641209796863,2.02776487,3830.8,3830.5,1.52838892]
[1641209797465,2.02776487,3830.8,3830.6,0.229991]
[1641209798065,2.02776487,3830.8,3830.5,1.52838892]
[1641209798666,2.02776487,3830.8,3830.6,0.229991]
[1641209798867,2.02776487,3830.8,3830.5,1.52838892]
[1641209799066,2.02776487,3830.8,3830.7,0.34307003]
[1641209799668,2.02776487,3830.8,3830.7,0.88874207]
[1641209801268,0.55562477,3830.8,3830.7,0.88874207]
[1641209803269,0.55562477,3830.8,3830.7,1.11873307]
[1641209804469,0.55562477,3830.8,3830.7,1.2318121]
[1641209805372,2.02776487,3830.8,3830.7,1.11873307]
[1641209805670,2.02776487,3830.8,3830.7,0.88874207]
[1641209806271,2.02776487,3830.8,3830.7,1.11873307]
[1641209806572,2.02776487,3830.8,3830.7,1.2318121]
[1641209807172,0.55562477,3830.8,3830.7,0.88874207]
[1641209807375,0.55562477,3830.8,3830.4,1.86666614]
[1641209809979,1.47094512,3830.6,3830.4,1.86666614]
[1641209810379,1.47094512,3830.5,3830.4,1.86666614]
[1641209811180,1.47094512,3830.5,3830.4,0.97792407]
[1641209811980,1.47094512,3830.6,3830.4,2.43787053]
[1641209812181,1.47094512,3830.6,3830.4,2.20787953]
[1641209812882,1.47094512,3830.6,3830.5,0.229991]
[1641209813282,1.47094512,3830.6,3830.4,1.86666614]
[1641209816686,1.47094512,3830.5,3830.4,0.97792407]
[1641209817587,1.47094512,3830.5,3830.4,2.21040207]
[1641209818386,1.47094512,3830.5,3830.4,2.44039307]
[1641209818587,1.47094512,3830.5,3830.4,2.21040207]
[1641209819187,1.47094512,3830.6,3830.4,2.21040207]
[1641209819787,1.47094512,3830.6,3830.4,1.86666614]
[1641209821495,1.47094512,3830.7,3830.4,0.97792407]
[1641209824099,1.47094512,3830.7,3830.5,0.229991]
[1641209824600,1.47094512,3830.7,3830.4,0.97792407]
[1641209824898,1.47094512,3830.7,3830.5,0.229991]
[1641209825098,1.47094512,3830.7,3830.4,0.97792407]
[1641209827004,1.47094512,3830.6,3830.4,0.97792407]
[1641209827606,1.47094512,3830.6,3830.4,1.20791507]
[1641209828005,1.47094512,3830.6,3830.4,0.97792407]
[1641209829508,1.47094512,3830.7,3830.4,0.97792407]
[1641209831807,1.47094512,3830.6,3830.4,0.97792407]
[1641209832207,1.47094512,3830.6,3830.4,1.20791507]
[1641209833610,1.47094512,3830.6,3830.4,0.97792407]
[1641209835611,1.97914512,3830.6,3830.4,0.97792407]
[1641209835916,1.97914512,3830.6,3830.4,1.20791507]
[1641209836311,0.55562477,3830.5,3830.4,1.20791507]
[1641209837314,0.55562477,3830.5,3830.4,0.97792407]
[1641209837514,0.55562477,3830.5,3830.2,0.88874207]
[1641209837716,1.5,3830.4,3829.9,1.18531889]
[1641209838016,1.5,3830.1,3829.9,1.18531889]
[1641209838817,1.5,3830.1,3829.3,1.77797833]
[1641209839217,1.47094512,3830.0,3829.3,1.18421606]
[1641209839417,3.47573512,3830.0,3829.3,1.18421606]
[1641209840219,1.5,3829.9,3829.3,1.18421606]
[1641209840420,2.00479,3830.0,3829.2,2.00479]
[1641209840823,2.05562477,3829.9,3829.3,0.30188752]
[1641209841022,0.55562477,3829.9,3829.3,0.30188752]
[1641209841619,0.55562477,3829.8,3829.2,2.00479]
[1641209842720,0.55562477,3829.9,3829.3,0.32463126]
[1641209844221,0.55562477,3829.9,3829.2,2.00479]
[1641209847023,2.05562477,3829.9,3829.2,2.00479]
[1641209847623,2.74823978,3829.7,3829.2,2.00479]
[1641209848225,1.46928635,3829.6,3829.2,2.00479]
[1641209849126,2.02491112,3829.6,3829.2,2.00479]
[1641209850128,1.17548493,3829.3,3829.2,2.00479]
[1641209850327,1.17548493,3829.3,3829.2,2.234781]
[1641209850528,1.17548493,3829.3,3829.2,3.5396678]
[1641209851131,1.17548493,3829.5,3829.2,3.84153703]
[1641209851628,1.17548493,3829.5,3829.2,2.53665023]
[1641209852028,1.17548493,3829.5,3829.3,0.30186923]
[1641209852228,2.02491112,3829.9,3829.4,0.229991]
[1641209852229,1.17548493,3829.6,3829.4,0.229991]
[1641209853633,1.17548493,3829.6,3829.4,1.729991]
[1641209853837,1.76471787,3830.2,3829.5,1.60655003]
[1641209854032,1.76471787,3830.2,3829.7,1.5]
[1641209854233,1.76471787,3830.2,3829.7,2.0435]
[1641209854435,1.76471787,3830.2,3829.9,1.5]
[1641209854734,2.5055509,3830.7,3830.0,0.229991]
[1641209855536,2.5055509,3830.7,3830.0,2.234781]
[1641209855736,0.74083303,3830.7,3830.0,2.234781]
[1641209856437,2.5055509,3830.7,3830.0,2.234781]
[1641209857540,2.00479,3830.5,3830.0,0.229991]
[1641209859046,2.00479,3830.5,3829.9,1.01687095]
[1641209860450,3.76950787,3830.5,3829.9,1.01687095]
[1641209861947,1.76471787,3830.4,3829.9,1.01687095]
[1641209862145,1.76471787,3830.4,3829.9,0.88871395]
[1641209863450,1.4709903,3830.1,3829.9,0.88871395]
[1641209864457,1.4709903,3830.1,3830.0,0.229991]
[1641209865157,1.4709903,3830.1,3829.9,0.88871395]
[1641209865658,1.4709903,3830.1,3830.0,0.229991]
[1641209867060,1.4709903,3830.1,3829.9,0.88871395]
[1641209868763,1.4709903,3830.2,3829.9,1.77657667]
[1641209870765,1.4709903,3830.2,3830.0,0.229991]
[1641209870965,1.4709903,3830.2,3829.9,1.77657667]
[1641209871767,1.4709903,3830.1,3830.0,0.229991]
[1641209871970,1.4709903,3830.1,3829.9,0.88871395]
[1641209872767,1.4709903,3830.1,3830.0,0.229991]
[1641209873167,1.4709903,3830.1,3829.9,0.88871395]
[1641209873569,1.4709903,3830.1,3830.0,0.229991]
[1641209873970,1.4709903,3830.1,3829.9,0.88871395]
[1641209874971,1.76471787,3830.4,3830.0,0.229991]
[1641209874972,1.4709903,3830.2,3830.0,0.229991]
[1641209875172,1.4709903,3830.2,3829.9,1.77657667]
[1641209877176,1.4709903,3830.2,3830.0,0.229991]
[1641209877375,1.4709903,3830.2,3829.9,0.88871395]
[1641209878577,1.4709903,3830.2,3829.9,1.77657667]
[1641209879577,1.4709903,3830.2,3829.9,0.88871395]
[1641209880579,1.4709903,3830.2,3830.0,0.229991]
[1641209881678,1.4709903,3830.3,3830.0,0.229991]
[1641209882278,0.55567287,3830.1,3830.0,0.229991]
[1641209883479,1.4709903,3830.3,3830.0,0.229991]
[1641209883679,1.4709903,3830.3,3829.9,0.88871395]
[1641209885581,1.17846877,3830.0,3829.9,0.88871395]
[1641209885782,1.17846877,3830.0,3829.9,1.11870495]
[1641209886283,1.17846877,3830.0,3829.9,0.88871395]
[1641209886782,1.17846877,3830.0,3829.9,1.11870495]
[1641209886983,1.17846877,3830.0,3829.9,0.88871395]
[1641209887987,1.17846877,3830.0,3829.7,0.88786272]
[1641209888387,2.0558903,3830.2,3829.7,0.88786272]
[1641209888587,2.0558903,3830.2,3829.6,2.89265272]
[1641209888588,1.4709903,3830.1,3829.6,2.89265272]
[1641209889287,1.17809865,3829.8,3829.6,2.89265272]
[1641209889488,1.17809865,3829.8,3829.6,3.12264372]
[1641209889887,1.17809865,3829.8,3829.6,2.89265272]
[1641209890288,1.17809865,3829.8,3829.7,0.229991]
[1641209890889,1.17809865,3829.8,3829.6,2.89265272]
[1641209891292,1.17809865,3829.8,3829.7,0.229991]
[1641209891690,1.17809865,3829.8,3829.7,1.53470415]
[1641209892091,1.17809865,3829.8,3829.7,2.75251747]
[1641209892891,1.17809865,3829.8,3829.7,1.86465475]
[1641209893095,1.17809865,3829.9,3829.7,1.86465475]
[1641209894092,1.17809865,3829.9,3829.8,1.21810305]
[1641209894893,1.17809865,3829.9,3829.8,0.3299506]
[1641209895096,1.17809865,3830.0,3829.8,0.3299506]
[1641209895294,1.17809865,3830.0,3829.9,0.229991]
[1641209895494,1.17809865,3830.0,3829.9,0.89008012]
[1641209895893,1.17809865,3830.0,3829.9,0.66008912]
[1641209896095,1.4709903,3830.2,3829.9,0.66008912]
[1641209897795,1.4709903,3830.1,3829.9,0.66008912]
[1641209898298,1.4709903,3830.2,3829.9,0.66008912]
[1641209898697,1.4709903,3830.2,3830.0,0.229991]
[1641209899097,1.4709903,3830.2,3829.9,0.66008912]
[1641209899597,1.4709903,3830.1,3830.0,0.229991]
[1641209900900,1.4709903,3830.1,3829.9,0.66008912]
[1641209901899,1.4709903,3830.1,3830.0,0.229991]
[1641209902100,1.4709903,3830.1,3829.9,0.66008912]
[1641209902802,1.4709903,3830.1,3830.0,0.229991]
[1641209903001,1.4709903,3830.2,3830.0,0.229991]
[1641209903405,1.4709903,3830.2,3830.1,0.128157]
[1641209904103,1.4709903,3830.2,3829.9,0.66008912]
[1641209905510,1.4709903,3830.1,3829.9,0.66008912]
[1641209905708,1.4709903,3830.1,3830.0,0.358148]
[1641209906009,1.4709903,3830.1,3830.0,0.128157]
[1641209907309,1.4709903,3830.1,3830.0,0.358148]
[1641209907909,1.4709903,3830.1,3830.0,0.128157]
[1641209908311,1.4709903,3830.1,3830.0,0.358148]
[1641209909314,1.4709903,3830.1,3830.0,0.128157]
[1641209909915,1.4709903,3830.1,3830.0,0.358148]
[1641209910116,1.4709903,3830.1,3829.9,0.66008912]
[1641209910518,1.76471787,3830.3,3829.9,0.66008912]
[1641209911318,1.47400669,3830.0,3829.9,0.66008912]
[1641209914925,1.47400669,3830.1,3829.9,0.89008012]
[1641209915425,2.32039074,3830.4,3829.9,1.77823807]
[1641209915726,1.76471787,3830.2,3829.9,1.77823807]
[1641209916725,1.47535193,3830.0,3829.9,1.77823807]
[1641209917226,1.47535193,3830.0,3829.9,0.89008012]
[1641209917427,1.47535193,3830.0,3829.9,1.2215693]
[1641209918731,1.47535193,3830.0,3829.9,0.9915783]
[1641209922639,1.47535193,3830.0,3829.9,1.2215693]
[1641209923038,0.55567287,3830.1,3829.9,1.2215693]
[1641209923238,1.60466608,3830.3,3829.9,1.2215693]
[1641209923641,1.60466608,3830.3,3830.2,1.30454634]
[1641209923842,1.60466608,3830.3,3830.2,0.813891]
[1641209924341,1.60466608,3830.6,3830.2,0.813891]
[1641209924541,1.60466608,3830.6,3830.4,2.00479]
[1641209924742,1.60466608,3830.6,3830.5,0.229991]
[1641209924941,0.74083303,3830.7,3830.5,1.47959251]
[1641209925143,1.13103303,3831.1,3830.5,1.47959251]
[1641209926041,1.13103303,3831.1,3830.5,1.24960151]
[1641209929742,1.13103303,3831.1,3830.5,1.12144451]
[1641209929942,1.13103303,3831.1,3830.5,1.24960151]
[1641209930544,1.13103303,3831.1,3830.5,1.12144451]
[1641209932947,0.889034,3831.0,3830.5,1.12144451]
[1641209933148,1.77061103,3830.8,3830.5,1.12144451]
[1641209933951,1.77061103,3830.8,3830.6,0.229991]
[1641209934155,1.77061103,3830.7,3830.5,1.24960151]
[1641209935054,1.77061103,3830.8,3830.5,1.24960151]
[1641209935553,1.77061103,3830.8,3830.5,1.12144451]
[1641209935954,1.77061103,3830.7,3830.5,1.12144451]
[1641209936153,1.77061103,3830.7,3830.4,2.00479]
[1641209936755,1.77061103,3830.7,3830.5,0.229991]
[1641209937153,1.77061103,3830.6,3830.5,0.229991]
[1641209937855,1.77061103,3830.8,3830.4,2.00479]
[1641209939165,1.47575425,3830.6,3830.4,2.00479]
[1641209939367,1.47575425,3830.6,3830.5,0.229991]
[1641209940068,1.47575425,3830.6,3830.4,3.24814542]
[1641209940467,1.47575425,3830.6,3830.4,3.47813642]
[1641209941271,1.77061103,3830.9,3830.4,3.47813642]
[1641209941668,1.77061103,3830.6,3830.4,3.47813642]
[1641209942169,1.77061103,3830.6,3830.4,3.24814542]
[1641209942570,1.77061103,3830.7,3830.5,0.229991]
[1641209944273,1.77061103,3830.7,3830.4,4.13581633]
[1641209944871,1.77061103,3830.7,3830.5,0.229991]
[1641209945871,1.77061103,3830.7,3830.4,4.13581633]
[1641209947074,1.77061103,3830.7,3830.5,0.229991]
[1641209947272,1.77061103,3830.7,3830.4,4.13581633]
[1641209947973,1.77061103,3830.7,3830.5,0.229991]
[1641209948177,1.77061103,3830.6,3830.5,0.229991]
[1641209949776,1.77061103,3830.6,3830.4,2.00479]
[1641209951878,1.77061103,3830.5,3830.4,2.00479]
[1641209952279,2.32620025,3830.5,3830.4,2.00479]
[1641209953279,1.77061103,3830.5,3830.4,2.00479]
[1641209953879,1.77061103,3830.5,3830.4,2.234781]
[1641209954683,1.77061103,3830.6,3830.4,2.234781]
[1641209955079,1.77061103,3830.6,3830.4,2.00479]
[1641209955481,1.77061103,3830.6,3830.5,0.229991]
[1641209956080,1.77061103,3830.6,3830.4,2.00479]
[1641209956482,1.77061103,3830.6,3830.5,0.229991]
[1641209956681,1.77061103,3830.6,3830.4,3.00779829]
[1641209957083,1.77061103,3830.7,3830.4,3.00779829]
[1641209958386,1.77061103,3830.6,3830.4,3.00779829]
[1641209959285,1.77061103,3830.6,3830.5,0.229991]
[1641209959686,1.77061103,3830.6,3830.5,0.975491]
[1641209961088,0.55558922,3831.0,3830.5,0.975491]
[1641209961089,1.47604287,3830.8,3830.5,2.53182101]
[1641209962391,2.32620025,3831.0,3830.7,0.88882909]
[1641209962688,2.32620025,3831.0,3830.8,0.229991]
[1641209963391,0.55558922,3831.0,3830.8,0.229991]
[1641209964895,0.55558922,3831.0,3830.8,2.234781]
[1641209965394,0.55558922,3831.2,3830.8,2.234781]
[1641209966195,1.77061103,3831.5,3830.8,2.234781]
[1641209966995,0.55558922,3831.1,3830.8,2.234781]
[1641209968298,1.77061103,3831.5,3830.8,2.234781]
[1641209972599,1.77061103,3831.5,3830.8,2.00479]
[1641209973803,1.77061103,3831.2,3830.8,2.00479]
[1641209977908,1.47440491,3830.9,3830.8,2.00479]
[1641209978110,1.47440491,3830.9,3830.8,2.234781]
[1641209978309,1.47440491,3830.9,3830.8,2.00479]
[1641209978911,1.47440491,3830.9,3830.8,2.234781]
[1641209979112,1.47440491,3831.0,3830.8,2.234781]
[1641209979313,1.47440491,3831.0,3830.8,2.764181]
[1641209980011,1.47440491,3831.0,3830.8,2.53419]
[1641209981115,1.47440491,3830.9,3830.8,2.53419]
[1641209981315,1.47440491,3830.9,3830.8,2.764181]
[1641209983419,1.47440491,3831.0,3830.8,2.764181]
[1641209984723,1.47440491,3831.1,3830.8,2.764181]
[1641209985222,0.55558922,3830.9,3830.8,2.764181]
[1641209986224,1.47440491,3831.1,3830.8,2.764181]
[1641209986926,1.17956861,3830.9,3830.8,2.764181]
[1641209990031,1.47440491,3831.1,3830.8,2.764181]
[1641209992031,1.17981502,3830.9,3830.8,2.764181]
[1641209994532,1.17981502,3831.0,3830.8,2.764181]
[1641209997035,1.17981502,3831.0,3830.8,2.53419]
[1641209997236,1.17981502,3831.0,3830.8,2.00479]
[1641209997435,1.17981502,3830.9,3830.8,2.00479]
[1641209998036,1.47440491,3831.2,3830.8,2.00479]
[1641209998237,1.47440491,3830.9,3830.8,2.00479]
[1641209999038,3.59480491,3830.9,3830.3,0.88882909]
[1641209999242,2.09480491,3830.9,3830.3,0.88882909]
[1641209999436,1.5,3830.5,3830.0,1.18450816]
[1641209999637,2.09480491,3830.9,3830.0,1.18450816]
[1641210000337,1.47440491,3830.4,3829.7,2.00479]
[1641210001738,1.17874108,3830.0,3829.7,2.00479]
[1641210002337,1.77644108,3830.0,3829.7,2.00479]
[1641210003542,0.5977,3830.0,3829.7,2.00479]
[1641210004247,0.55568698,3829.9,3829.7,2.00479]
[1641210006147,0.55568698,3829.9,3829.8,0.229991]
[1641210006347,0.55568698,3829.9,3829.7,2.00479]
[1641210006949,1.17874108,3830.1,3829.7,2.00479]
[1641210007149,1.17874108,3830.2,3829.7,2.00479]
[1641210007851,3.47919491,3830.5,3829.7,2.00479]
[1641210007852,1.17874108,3830.1,3829.7,2.00479]
[1641210009549,1.85834108,3830.1,3829.7,2.00479]
[1641210009951,0.6796,3830.1,3829.7,2.00479]
[1641210010551,1.17874108,3830.2,3829.7,2.00479]
[1641210010752,0.55568342,3830.0,3829.7,2.00479]
[1641210010952,0.55568342,3830.0,3829.6,1.30474209]
[1641210011151,3.50479,3829.7,3828.9,1.18450816]
[1641210011351,2.00479,3829.7,3828.9,1.18450816]
[1641210011551,3.50479,3829.7,3828.7,2.00479]
[1641210011751,2.00479,3829.7,3828.7,2.00479]
[1641210011955,2.00479,3829.7,3828.7,3.18664568]
[1641210012855,2.00479,3829.7,3828.7,2.00479]
[1641210013054,0.55568342,3829.6,3828.8,0.3460861]
[1641210013255,1.06048342,3829.6,3828.8,0.3460861]
[1641210013654,1.06048342,3829.6,3828.7,2.00479]
[1641210014456,0.5048,3829.6,3828.7,2.00479]
[1641210014654,28.43701728,3829.7,3828.7,2.00479]
[1641210018057,29.93701728,3829.7,3828.7,2.00479]
[1641210018458,1.5,3829.6,3828.7,2.00479]
[1641210018661,28.43701728,3829.7,3828.7,2.00479]
[1641210020161,0.88204297,3829.3,3828.8,0.88642869]
[1641210022966,0.88204297,3829.5,3828.7,2.132947]
[1641210023168,0.88204297,3829.5,3828.7,2.709847]
[1641210026471,0.88204297,3829.6,3828.7,2.709847]
[1641210031284,0.88204297,3829.6,3828.7,2.58169]
[1641210036083,1.5,3829.5,3828.7,2.58169]
[1641210037083,0.88204297,3829.6,3828.7,2.58169]
[1641210037684,0.88204297,3829.5,3828.7,2.58169]
[1641210040990,0.88204297,3829.5,3828.8,0.128157]
[1641210042090,0.88204297,3829.5,3828.7,2.58169]
[1641210042891,0.88204297,3829.5,3828.8,0.128157]
[1641210043093,1.1748746,3829.8,3829.3,1.30483742]
[1641210043292,0.88042024,3829.6,3829.3,1.30483742]
[1641210043494,0.88042024,3829.6,3829.5,2.00479]
[1641210043692,0.88042024,3829.6,3829.5,2.81639]
[1641210043893,1.1748746,3829.9,3829.5,2.81639]
[1641210044093,1.1748746,3829.9,3829.5,3.62331459]
[1641210044292,26.1811,3830.3,3829.5,3.62331459]
[1641210045093,26.1811,3830.3,3829.6,0.128157]
[1641210046293,2.00479,3830.5,3829.6,0.128157]
[1641210046495,1.1748746,3830.6,3829.7,29.00547172]
[1641210046696,1.1748746,3830.6,3830.1,1.30458889]
[1641210047097,1.1748746,3830.7,3830.1,1.30458889]
[1641210047494,1.1748746,3830.7,3830.6,2.00479]
[1641210047696,1.1748746,3830.7,3830.6,2.931481]
[1641210048094,1.1748746,3830.7,3830.6,2.70149]
[1641210048596,1.1748746,3831.0,3830.6,2.70149]
[1641210048795,1.1748746,3831.0,3830.6,2.931481]
[1641210048996,2.71554995,3831.3,3830.6,2.931481]
[1641210049197,1.47440491,3830.9,3830.6,2.70149]
[1641210050600,1.17771894,3830.7,3830.6,2.70149]
[1641210050801,1.17771894,3830.7,3830.6,2.00479]
[1641210051601,1.98111894,3830.7,3830.6,2.00479]
[1641210052402,0.8034,3830.7,3830.6,2.00479]
[1641210052803,1.47440491,3830.9,3830.6,2.00479]
[1641210053404,1.47440491,3830.9,3830.1,0.85306631]
[1641210053604,2.00479,3830.6,3830.2,0.128157]
[1641210053804,1.77823409,3830.5,3830.2,0.128157]
[1641210054004,2.00479,3830.6,3830.3,0.229991]
[1641210054504,1.17694455,3830.5,3830.3,0.229991]
[1641210055908,1.17694455,3830.5,3830.1,0.85306631]
[1641210056912,2.00479,3830.6,3830.1,0.85306631]
[1641210058114,3.18173455,3830.6,3830.1,0.85306631]
[1641210059916,3.18173455,3830.6,3830.1,1.61936631]
[1641210063725,0.88079616,3830.6,3830.1,3.62415631]
[1641210065424,1.59619616,3830.6,3830.1,3.62415631]
[1641210065623,3.60098616,3830.6,3830.1,1.61936631]
[1641210065824,3.60098616,3830.6,3830.1,0.7663]
[1641210066024,0.88079616,3830.5,3830.1,0.128157]
[1641210067127,0.88079616,3830.5,3830.0,1.13026921]
[1641210067929,0.88079616,3830.4,3830.0,1.13026921]
[1641210068328,1.48059616,3830.4,3830.0,1.13026921]
[1641210070430,0.88079616,3830.3,3830.0,1.13026921]
[1641210072033,0.88079616,3830.3,3830.1,0.229991]
[1641210072434,0.88079616,3830.4,3830.1,0.229991]
[1641210073335,0.88079616,3830.4,3830.0,1.13026921]
[1641210074338,1.5,3830.1,3829.5,1.25103141]
[1641210074538,1.5,3830.1,3828.8,22.7631]
[1641210074737,3.16959616,3830.4,3828.3,3.08066557]
[1641210074937,14.35959616,3830.4,3828.3,3.08066557]
[1641210075137,3.16959616,3830.4,3828.3,3.08066557]
[1641210075337,1.66959616,3830.4,3828.9,1.87996762]
[1641210075737,2.00479,3829.6,3828.9,1.87996762]
[1641210076038,2.00479,3829.6,3829.1,0.128157]
[1641210080043,2.00479,3829.6,3828.9,0.69922182]
[1641210080343,2.00479,3829.6,3828.9,0.82737882]
[1641210081456,0.88079616,3829.8,3829.2,1.30489361]
[1641210081643,0.88079616,3829.6,3829.2,2.07249361]
[1641210083447,1.17694455,3829.9,3829.2,2.07249361]
[1641210083648,0.88079616,3830.0,3829.2,2.07249361]
[1641210083848,0.88079616,3830.0,3829.6,2.00479]
[1641210084053,0.88079616,3830.0,3829.6,2.88788656]
[1641210084348,0.88079616,3830.0,3829.7,0.128157]
[1641210084551,0.88079616,3830.0,3829.8,0.229991]
[1641210085851,0.88079616,3830.2,3829.8,0.229991]
[1641210088055,0.88079616,3830.2,3829.6,2.88788656]
[1641210089858,0.88079616,3830.2,3829.7,1.30470463]
[1641210090459,0.88079616,3830.3,3829.7,1.30470463]
[1641210091559,2.88558616,3830.6,3829.7,1.30470463]
[1641210093263,0.88079616,3830.4,3829.7,1.30470463]
[1641210094767,0.88079616,3830.4,3829.7,2.80470463]
[1641210094964,0.88079616,3830.4,3829.7,3.46018929]
[1641210095165,0.88079616,3830.4,3829.7,1.96018929]
[1641210095367,2.00479,3830.6,3829.7,1.96018929]
[1641210095368,2.88558616,3830.6,3829.7,1.96018929]
[1641210095565,2.88558616,3830.6,3829.7,3.46018929]
[1641210095766,0.88079616,3830.6,3830.2,2.00479]